fUSD/lending_fUSD_20240607
["ID","MTS","AMOUNT","RATE_DAILY","PERIOD"]
[328789533,1717788642186,-203.72693932,0.00029525,2]
[328789534,1717788642196,-154.78346022,0.0002953,2]
[328789535,1717788642205,-154.78346022,0.00029534,2]
[328789536,1717788642215,-153.04658946,0.00029538,2]
[328789537,1717788642225,-150.95,0.00029552,2]
[328789538,1717788642234,-150.95,0.00029552,2]
[328789539,1717788642244,-150.95,0.00029553,2]
[328789540,1717788642255,-150.95,0.00029553,2]
[328789541,1717788642265,-150.95,0.00029553,2]
[328789542,1717788642275,-150.95,0.00029553,2]
[328789543,1717788642285,-25000.0,0.00029557,2]
[328789544,1717788642298,-620755.89860803,0.00029562,2]
[328789545,1717788642308,-67966.92379424,0.00029563,2]
[328789546,1717788642858,-206.03555751,0.00019176,2]
[328789547,1717788642868,-155.42594967,0.00019176,2]
[328789548,1717788642879,-158.29323863,0.00019176,2]
[328789549,1717788642890,-34.99040998,0.00027,2]
[328789551,1717788642904,-319.51507007,0.00027,2]
[328789554,1717788642916,-937.56930127,0.0002848,2]
[328789556,1717788642927,-956.57062866,0.00029563,2]
[328789558,1717788642940,-492.65493131,0.00029563,2]
[328789560,1717788642953,-12489.90693721,0.00029563,2]
[328789569,1717788644491,-155.0,0.00012007,2]
[328789574,1717788644501,-234.25383046,0.00019176,2]
[328789578,1717788644512,-1604.60035557,0.00019176,2]
[328789582,1717788644523,-718.04191935,0.00019176,2]
[328789587,1717788644533,-1144.72939741,0.00019176,2]
[328789592,1717788644544,-1275.87816155,0.00019451,2]
[328789594,1717788644555,-523.82451147,0.00019451,2]
[328789600,1717788644565,-1559.0,0.00025,2]
[328789606,1717788644579,-313.24995459,0.00029552,2]
[328789611,1717788644589,-25356.17546736,0.00029563,2]
[328789616,1717788644603,-1609.9999999,0.00029563,2]
[328789620,1717788644617,-73480.0,0.00029563,2]
[328789623,1717788644630,-333.80672062,0.00029563,2]
[328789625,1717788644642,-1988.45580001,0.00029563,2]
[328789627,1717788644656,-346.155,0.00029563,2]
[328789638,1717788644715,-274.61835925,0.00029563,2]
[328789640,1717788644726,-13311.27102138,0.00029563,2]
[328789642,1717788644738,-156843.48524006,0.00029563,2]
[328789643,1717788644748,-1389.9544,0.00029563,2]
[328789644,1717788644758,-500.0,0.00029563,2]
[328789645,1717788644768,-646.29329735,0.00029578,15]
[328789646,1717788644778,-203.72693932,0.00029588,2]
[328789647,1717788644788,-500.0,0.00029589,4]
[328789648,1717788644801,-500.0,0.00029589,4]
[328789649,1717788644811,-500.0,0.00029589,4]
[328789650,1717788644822,-500.0,0.00029589,4]
[328789651,1717788644832,-500.0,0.00029589,4]
[328789652,1717788644843,-154.48715506,0.00029591,2]
[328789653,1717788644853,-193.83670902,0.00029611,2]
[328789654,1717788644863,-203.72693932,0.0002965,2]
[328789655,1717788644874,-150.95,0.00029653,2]
[328789656,1717788644884,-240.4134823,0.00029656,2]
[328789657,1717788644895,-646.29329735,0.00029658,15]
[328789658,1717788644905,-240.4134823,0.00029663,2]
[328789659,1717788644915,-174.5649,0.00029663,2]
[328789660,1717788644925,-83488.9761,0.00029663,2]
[328789661,1717788644935,-1605.59659611,0.00029678,15]
[328789662,1717788644946,-192.38869594,0.00029682,2]
[328789663,1717788644956,-351.71211312,0.00029682,2]
[328789664,1717788644966,-250.17424601,0.00029699,4]
[328789665,1717788644976,-15855.8085595,0.000297,2]
[328789666,1717788644986,-360.0,0.000297,2]
[328789667,1717788644996,-154.78346022,0.00029711,2]
[328789668,1717788645007,-203.72693932,0.00029713,2]
[328789669,1717788645017,-155.40657784,0.00029713,2]
[328789670,1717788645028,-240.4134823,0.00029721,2]
[328789671,1717788645039,-240.4134823,0.00029728,2]
[328789672,1717788645051,-207.99496719,0.00029735,2]
[328789673,1717788645063,-646.29329735,0.00029739,15]
[328789674,1717788645074,-153.04658946,0.00029753,2]
[328789675,1717788645084,-150.95,0.00029753,2]
[328789676,1717788645094,-150.95,0.00029753,2]
[328789677,1717788645104,-207.99496719,0.00029756,2]
[328789678,1717788645116,-500.0,0.0002976,2]
[328789679,1717788645128,-200.0,0.0002976,2]
[328789680,1717788645138,-5000.0,0.0002976,2]
[328789681,1717788645149,-240.4134823,0.00029761,2]
[328789682,1717788645160,-7500.0,0.00029761,2]
[328789683,1717788645171,-345.64489029,0.00029762,4]
[328789684,1717788645181,-173.30371156,0.00029763,2]
[328789685,1717788645192,-1767.16186646,0.00029763,2]
[328789686,1717788645204,-240.4134823,0.00029763,2]
[328789687,1717788645214,-176.84965762,0.00029763,2]
[328789688,1717788645225,-174.31197829,0.00029763,2]
[328789689,1717788645235,-1380.2640677,0.00029763,2]
[328789690,1717788645245,-7497.0688,0.00029763,2]
[328789691,1717788645255,-100000.0,0.00029763,2]
[328789692,1717788645266,-8993.1572,0.00029763,2]
[328789693,1717788645276,-1000.0,0.00029763,2]
[328789694,1717788645287,-8592.9129,0.00029763,2]
[328789695,1717788645297,-154.48715506,0.00029765,2]
[328789696,1717788645308,-203.72693932,0.00029775,2]
[328789697,1717788645318,-1767.16186645,0.00029775,2]
[328789698,1717788645329,-240.4134823,0.00029776,2]
[328789699,1717788645339,-500.0,0.00029784,2]
[328789700,1717788645350,-700.0,0.00029784,2]
[328789701,1717788645361,-900.0,0.00029784,2]
[328789702,1717788645372,-1767.16186645,0.00029788,2]
[328789703,1717788645382,-1000.0,0.00029795,14]
[328789704,1717788645392,-500.0,0.000298,2]
[328789705,1717788645403,-500.0,0.000298,2]
[328789706,1717788645413,-500.0,0.000298,2]
[328789707,1717788645423,-500.0,0.000298,2]
[328789708,1717788645433,-500.0,0.000298,2]
[328789709,1717788645443,-500.0,0.000298,2]
[328789710,1717788645454,-500.0,0.000298,2]
[328789711,1717788645465,-610.0,0.000298,2]
[328789712,1717788645475,-155.0,0.000298,2]
[328789713,1717788645486,-150.0,0.000298,2]
[328789714,1717788645496,-1994.48,0.000298,2]
[328789715,1717788645507,-1767.16186645,0.000298,2]
[328789716,1717788645517,-1767.16186645,0.00029813,2]
[328789717,1717788645528,-646.29329735,0.00029819,15]
[328789718,1717788645539,-1767.16186645,0.00029825,2]
[328789719,1717788645550,-1380.26406768,0.00029832,2]
[328789720,1717788645564,-150.5,0.00029833,15]
[328789721,1717788645575,-296.0,0.00029833,15]
[328789722,1717788645586,-154.78346022,0.00029835,2]
[328789723,1717788645597,-800.0,0.00029836,2]
[328789724,1717788645607,-203.72693932,0.00029838,2]
[328789725,1717788645617,-1767.16186645,0.00029838,2]
[328789726,1717788645627,-150.5,0.00029843,15]
[328789727,1717788645641,-155.78,0.00029843,15]
[328789728,1717788645652,-296.0,0.00029843,15]
[328789729,1717788645663,-27734.6551667,0.0002985,2]
[328789730,1717788645673,-1767.16186645,0.0002985,2]
[328789731,1717788645682,-154.78346022,0.00029851,2]
[328789732,1717788645692,-150.95,0.00029851,2]
[328789733,1717788645703,-14252.1329093,0.00029852,2]
[328789734,1717788645714,-150.5,0.00029853,15]
[328789735,1717788645724,-150.5,0.00029853,15]
[328789736,1717788645734,-296.0,0.00029853,15]
[328789737,1717788645745,-150.95,0.00029853,2]
[328789738,1717788645755,-313.24995459,0.00029853,2]
[328789739,1717788645765,-313.24995459,0.00029853,2]
[328789740,1717788645775,-201.66,0.00029858,2]
[328789741,1717788645786,-238.05411199,0.00029861,2]
[328789742,1717788645797,-407.19896974,0.00029861,2]
[328789743,1717788645808,-205.53087797,0.00029861,2]
[328789744,1717788645818,-311.66175249,0.00029861,2]
[328789745,1717788645830,-2366.69217464,0.00029861,2]
[328789746,1717788645840,-246.59143073,0.00029861,2]
[328789747,1717788645851,-1000.0,0.00029861,2]
[328789748,1717788645861,-9214.69971904,0.00029861,2]
[328789749,1717788645871,-170.67520193,0.00029861,2]
[328789750,1717788645882,-4441.68139867,0.00029861,2]
[328789751,1717788645892,-155.97820346,0.00029861,2]
[328789752,1717788645902,-155.0,0.00029861,2]
[328789753,1717788645913,-333.70942051,0.00029861,2]
[328789754,1717788645924,-468.41631575,0.00029861,2]
[328789755,1717788645934,-160.83214336,0.00029861,2]
[328789756,1717788645944,-338.82505848,0.00029861,2]
[328789757,1717788645955,-268.32530534,0.00029861,2]
[328789758,1717788645965,-168.23517528,0.00029861,2]
[328789759,1717788645975,-574.7172452,0.00029861,2]
[328789760,1717788645986,-1868.82130973,0.00029861,2]
[328789761,1717788645996,-622.1717266,0.00029861,2]
[328789762,1717788646007,-493.44685405,0.00029861,2]
[328789763,1717788646017,-177.57466419,0.00029861,2]
[328789764,1717788646027,-341.93366323,0.00029861,2]
[328789765,1717788646038,-1011.07818296,0.00029861,2]
[328789766,1717788646050,-364.12731579,0.00029861,2]
[328789767,1717788646061,-325.96818218,0.00029861,2]
[328789768,1717788646071,-1851.30045628,0.00029861,2]
[328789769,1717788646082,-2055.69464172,0.00029861,2]
[328789770,1717788646093,-23523.49813737,0.00029861,5]
[328789771,1717788646103,-265.97843345,0.00029861,2]
[328789772,1717788646114,-4168.40235176,0.00029861,2]
[328789773,1717788646125,-292.99577592,0.00029861,2]
[328789774,1717788646135,-2004.02984244,0.00029861,2]
[328789775,1717788646146,-635.51638725,0.00029861,4]
[328789776,1717788646156,-1260.44934067,0.00029862,2]
[328789777,1717788646166,-196.29914674,0.00029862,2]
[328789778,1717788646177,-1152.31990522,0.00029862,15]
[328789779,1717788646188,-150.0,0.00029862,2]
[328789780,1717788646198,-150.0,0.00029862,7]
[328789781,1717788646209,-159.90982101,0.00029862,7]
[328789782,1717788646220,-1767.16186645,0.00029863,2]
[328789783,1717788646231,-500.0,0.00029863,4]
[328789784,1717788646241,-500.0,0.00029863,4]
[328789785,1717788646252,-469.37669733,0.00029863,4]
[328789786,1717788646263,-500.0,0.00029863,4]
[328789787,1717788646274,-500.0,0.00029863,4]
[328789788,1717788646284,-500.0,0.00029863,4]
[328789789,1717788646296,-500.0,0.00029863,4]
[328789790,1717788646307,-500.0,0.00029863,4]
[328789791,1717788646318,-371.67,0.00029863,4]
[328789792,1717788646329,-529.34228184,0.00029863,4]
[328789793,1717788646340,-511.94499528,0.00029863,4]
[328789794,1717788646547,-500.0,0.00029863,4]
[328789795,1717788646571,-500.0,0.00029863,4]
[328789796,1717788646581,-279.18,0.00029863,4]
[328789797,1717788646592,-500.0,0.00029863,4]
[328789798,1717788646602,-518.07950994,0.00029863,4]
[328789799,1717788646614,-604.04,0.00029863,4]
[328789800,1717788646624,-500.0,0.00029863,4]
[328789801,1717788646634,-500.0,0.00029863,4]
[328789802,1717788646645,-500.0,0.00029863,4]
[328789803,1717788646656,-500.0,0.00029863,4]
[328789804,1717788646665,-500.0,0.00029863,4]
[328789805,1717788646675,-500.0,0.00029863,4]
[328789806,1717788646684,-500.0,0.00029863,4]
[328789807,1717788646694,-500.0,0.00029863,4]
[328789808,1717788646703,-634.72825885,0.00029863,4]
[328789809,1717788646714,-548.25998209,0.00029863,4]
[328789810,1717788646723,-500.0,0.00029863,4]
[328789811,1717788646733,-552.2,0.00029863,4]
[328789812,1717788646743,-553.0962847,0.00029863,4]
[328789813,1717788646753,-346.1473628,0.00029863,2]
[328789814,1717788646762,-507.43542344,0.00029863,4]
[328789815,1717788646772,-500.0,0.00029863,4]
[328789816,1717788646782,-581.63415286,0.00029863,4]
[328789817,1717788646792,-516.85258134,0.00029863,4]
[328789818,1717788646804,-500.0,0.00029863,4]
[328789819,1717788646814,-500.0,0.00029863,4]
[328789820,1717788646824,-523.76780892,0.00029863,4]
[328789821,1717788646834,-500.0,0.00029863,4]
[328789822,1717788646843,-522.85285591,0.00029863,4]
[328789823,1717788646853,-500.0,0.00029863,4]
[328789824,1717788646863,-500.0,0.00029863,4]
[328789825,1717788646872,-500.0,0.00029863,4]
[328789826,1717788646882,-500.0,0.00029863,4]
[328789827,1717788646891,-500.0,0.00029863,4]
[328789828,1717788646901,-500.0,0.00029863,4]
[328789829,1717788646911,-500.0,0.00029863,4]
[328789830,1717788646921,-500.0,0.00029863,4]
[328789831,1717788646931,-500.0,0.00029863,4]
[328789832,1717788646941,-500.0,0.00029863,4]
[328789833,1717788646951,-500.0,0.00029863,4]
[328789834,1717788646961,-500.0,0.00029863,4]
[328789835,1717788646971,-500.0,0.00029863,4]
[328789836,1717788646981,-500.0,0.00029863,4]
[328789837,1717788646991,-500.0,0.00029863,4]
[328789838,1717788647000,-480.82918147,0.00029863,4]
[328789839,1717788647010,-500.0,0.00029863,4]
[328789840,1717788647020,-620.8822803,0.00029863,4]
[328789841,1717788647029,-500.0,0.00029863,4]
[328789842,1717788647039,-500.0,0.00029863,4]
[328789843,1717788647051,-500.0,0.00029863,4]
[328789844,1717788647060,-426.45,0.00029863,4]
[328789845,1717788647070,-312.03177481,0.00029863,4]
[328789846,1717788647079,-500.0,0.00029863,4]
[328789847,1717788647088,-310.4,0.00029863,4]
[328789848,1717788647098,-500.0,0.00029863,4]
[328789849,1717788647108,-500.0,0.00029863,4]
[328789850,1717788647118,-500.0,0.00029863,4]
[328789851,1717788647128,-500.0,0.00029863,4]
[328789852,1717788647137,-500.0,0.00029863,4]
[328789853,1717788647148,-205.87304627,0.00029863,4]
[328789854,1717788647158,-505.07657684,0.00029863,4]
[328789855,1717788647168,-500.0,0.00029863,4]
[328789856,1717788647177,-500.0,0.00029863,4]
[328789859,1717788647187,-500.0,0.00029863,2]
[328789862,1717788647196,-500.0,0.00029863,2]
[328789865,1717788647206,-500.0,0.00029863,2]
[328789868,1717788647216,-500.0,0.00029863,4]
[328789871,1717788647226,-500.0,0.00029863,4]
[328789874,1717788647236,-500.0,0.00029863,4]
[328789878,1717788647248,-500.0,0.00029863,4]
[328789882,1717788647258,-500.0,0.00029863,4]
[328789885,1717788647268,-500.0,0.00029863,4]
[328789888,1717788647278,-551.46865193,0.00029863,4]
[328789891,1717788647288,-500.0,0.00029863,4]
[328789894,1717788647299,-500.0,0.00029863,4]
[328789897,1717788647308,-500.0,0.00029863,4]
[328789900,1717788647319,-500.0,0.00029863,4]
[328789901,1717788647328,-500.0,0.00029863,4]
[328789904,1717788647337,-500.0,0.00029863,4]
[328789908,1717788647347,-500.0,0.00029863,4]
[328789911,1717788647356,-500.0,0.00029863,4]
[328789914,1717788647366,-598.68376614,0.00029863,4]
[328789917,1717788647376,-500.0,0.00029863,4]
[328789919,1717788647386,-500.0,0.00029863,4]
[328789921,1717788647395,-500.0,0.00029863,4]
[328789923,1717788647405,-500.0,0.00029863,4]
[328789925,1717788647414,-305.64695598,0.00029863,4]
[328789927,1717788647424,-253.05039588,0.00029863,4]
[328789929,1717788647434,-500.0,0.00029863,4]
[328789931,1717788647443,-500.0,0.00029863,4]
[328789933,1717788647453,-500.0,0.00029863,4]
[328789935,1717788647463,-506.62991236,0.00029863,2]
[328789937,1717788647472,-500.0,0.00029863,4]
[328789939,1717788647482,-500.0,0.00029863,4]
[328789941,1717788647491,-500.0,0.00029863,4]
[328789943,1717788647500,-500.0,0.00029863,4]
[328789945,1717788647510,-500.0,0.00029863,4]
[328789947,1717788647519,-500.0,0.00029863,4]
[328789949,1717788647529,-500.0,0.00029863,4]
[328789951,1717788647538,-500.0,0.00029863,4]
[328789953,1717788647549,-500.0,0.00029863,4]
[328789955,1717788647563,-500.0,0.00029863,4]
[328789956,1717788647572,-500.0,0.00029863,4]
[328789958,1717788647582,-512.85207078,0.00029863,4]
[328789960,1717788647591,-500.0,0.00029863,4]
[328789962,1717788647602,-500.0,0.00029863,4]
[328789964,1717788647612,-500.0,0.00029863,4]
[328789967,1717788647623,-500.0,0.00029863,4]
[328789969,1717788647633,-500.0,0.00029863,4]
[328789971,1717788647644,-500.0,0.00029863,4]
[328789972,1717788647655,-500.0,0.00029863,4]
[328789974,1717788647665,-500.0,0.00029863,4]
[328789976,1717788647675,-510.75137145,0.00029863,4]
[328789979,1717788647685,-500.0,0.00029863,4]
[328789981,1717788647696,-500.0,0.00029863,4]
[328789983,1717788647706,-500.0,0.00029863,4]
[328789985,1717788647716,-500.0,0.00029863,4]
[328789987,1717788647726,-279.56825165,0.00029863,4]
[328789989,1717788647736,-500.0,0.00029863,4]
[328789991,1717788647746,-480.41,0.00029863,4]
[328789993,1717788647756,-500.0,0.00029863,4]
[328789995,1717788647766,-500.0,0.00029863,4]
[328789997,1717788647776,-500.0,0.00029863,4]
[328789999,1717788647786,-500.0,0.00029863,4]
[328790001,1717788647796,-500.0,0.00029863,4]
[328790003,1717788647807,-500.0,0.00029863,4]
[328790004,1717788647820,-500.0,0.00029863,4]
[328790006,1717788647830,-500.0,0.00029863,4]
[328790008,1717788647840,-500.0,0.00029863,4]
[328790010,1717788647851,-500.0,0.00029863,4]
[328790012,1717788647860,-500.0,0.00029863,4]
[328790014,1717788647870,-500.0,0.00029863,4]
[328790016,1717788647879,-500.0,0.00029863,4]
[328790018,1717788647889,-500.0,0.00029863,4]
[328790020,1717788647899,-500.0,0.00029863,4]
[328790022,1717788647909,-409.323396,0.00029863,4]
[328790024,1717788647919,-500.0,0.00029863,4]
[328790026,1717788647928,-500.0,0.00029863,4]
[328790028,1717788647939,-500.0,0.00029863,4]
[328790030,1717788647949,-500.0,0.00029863,4]
[328790032,1717788647958,-500.0,0.00029863,4]
[328790034,1717788647967,-500.0,0.00029863,4]
[328790036,1717788647977,-500.0,0.00029863,4]
[328790038,1717788647987,-500.0,0.00029863,4]
[328790039,1717788647996,-500.0,0.00029863,4]
[328790040,1717788648006,-500.0,0.00029863,4]
[328790041,1717788648015,-500.0,0.00029863,4]
[328790043,1717788648025,-500.0,0.00029863,4]
[328790045,1717788648035,-500.0,0.00029863,4]
[328790047,1717788648044,-500.0,0.00029863,4]
[328790049,1717788648057,-316.27947292,0.00029863,4]
[328790051,1717788648067,-566.14398573,0.00029863,4]
[328790052,1717788648076,-500.0,0.00029863,4]
[328790054,1717788648085,-500.0,0.00029863,4]
[328790056,1717788648094,-500.0,0.00029863,4]
[328790058,1717788648104,-500.0,0.00029863,4]
[328790060,1717788648114,-500.0,0.00029863,4]
[328790062,1717788648123,-500.0,0.00029863,4]
[328790064,1717788648133,-500.0,0.00029863,4]
[328790066,1717788648143,-500.0,0.00029863,4]
[328790068,1717788648153,-500.0,0.00029863,4]
[328790070,1717788648163,-500.0,0.00029863,4]
[328790071,1717788648172,-500.0,0.00029863,4]
[328790073,1717788648181,-500.0,0.00029863,4]
[328790075,1717788648191,-500.0,0.00029863,4]
[328790076,1717788648201,-500.0,0.00029863,4]
[328790077,1717788648210,-500.0,0.00029863,4]
[328790078,1717788648220,-500.0,0.00029863,4]
[328790079,1717788648229,-500.0,0.00029863,4]
[328790080,1717788648239,-500.0,0.00029863,4]
[328790081,1717788648248,-500.0,0.00029863,4]
[328790082,1717788648258,-500.0,0.00029863,4]
[328790083,1717788648267,-500.0,0.00029863,4]
[328790084,1717788648277,-500.0,0.00029863,4]
[328790085,1717788648287,-384.69377729,0.00029863,4]
[328790086,1717788648296,-500.0,0.00029863,4]
[328790087,1717788648308,-500.0,0.00029863,4]
[328790088,1717788648317,-262.67047836,0.00029863,4]
[328790089,1717788648327,-500.0,0.00029863,4]
[328790090,1717788648336,-500.0,0.00029863,4]
[328790091,1717788648346,-500.0,0.00029863,4]
[328790092,1717788648356,-500.0,0.00029863,4]
[328790093,1717788648365,-500.0,0.00029863,4]
[328790094,1717788648375,-500.0,0.00029863,4]
[328790095,1717788648385,-500.0,0.00029863,4]
[328790096,1717788648395,-500.0,0.00029863,4]
[328790097,1717788648404,-297.28,0.00029863,4]
[328790098,1717788648414,-500.0,0.00029863,4]
[328790099,1717788648423,-290.77,0.00029863,4]
[328790100,1717788648433,-500.0,0.00029863,4]
[328790101,1717788648443,-500.0,0.00029863,4]
[328790102,1717788648452,-500.0,0.00029863,4]
[328790103,1717788648462,-498.59742909,0.00029863,4]
[328790104,1717788648471,-500.0,0.00029863,4]
[328790105,1717788648480,-500.0,0.00029863,4]
[328790106,1717788648489,-572.94,0.00029863,4]
[328790107,1717788648499,-500.0,0.00029863,4]
[328790108,1717788648508,-500.0,0.00029863,4]
[328790109,1717788648518,-363.10371353,0.00029863,4]
[328790110,1717788648527,-500.0,0.00029863,4]
[328790111,1717788648538,-500.0,0.00029863,4]
[328790112,1717788648548,-500.0,0.00029863,4]
[328790113,1717788648557,-500.0,0.00029863,4]
[328790114,1717788648567,-500.0,0.00029863,4]
[328790115,1717788648578,-500.0,0.00029863,4]
[328790116,1717788648588,-500.0,0.00029863,4]
[328790117,1717788648598,-500.0,0.00029863,4]
[328790118,1717788648607,-500.0,0.00029863,4]
[328790119,1717788648617,-500.0,0.00029863,4]
[328790120,1717788648627,-500.0,0.00029863,4]
[328790121,1717788648636,-500.0,0.00029863,4]
[328790122,1717788648647,-500.0,0.00029863,4]
[328790123,1717788648656,-500.0,0.00029863,4]
[328790124,1717788648665,-307.49,0.00029863,4]
[328790125,1717788648675,-500.0,0.00029863,4]
[328790126,1717788648684,-500.0,0.00029863,4]
[328790127,1717788648693,-500.0,0.00029863,4]
[328790128,1717788648703,-500.0,0.00029863,4]
[328790129,1717788648713,-586.2,0.00029863,4]
[328790130,1717788648722,-500.0,0.00029863,4]
[328790131,1717788648731,-500.0,0.00029863,4]
[328790132,1717788648741,-500.0,0.00029863,4]
[328790133,1717788648750,-500.0,0.00029863,4]
[328790134,1717788648762,-500.0,0.00029863,4]
[328790135,1717788648772,-500.0,0.00029863,4]
[328790136,1717788648781,-500.0,0.00029863,4]
[328790137,1717788648791,-500.0,0.00029863,4]
[328790138,1717788648802,-500.0,0.00029863,4]
[328790139,1717788648812,-500.0,0.00029863,4]
[328790140,1717788648822,-500.0,0.00029863,4]
[328790141,1717788648832,-500.0,0.00029863,4]
[328790142,1717788648841,-500.0,0.00029863,4]
[328790143,1717788648851,-500.0,0.00029863,4]
[328790144,1717788648860,-500.0,0.00029863,4]
[328790145,1717788648870,-511.20495892,0.00029863,4]
[328790146,1717788648879,-500.0,0.00029863,4]
[328790147,1717788648889,-500.0,0.00029863,4]
[328790148,1717788648898,-500.0,0.00029863,4]
[328790149,1717788648908,-500.0,0.00029863,4]
[328790150,1717788648917,-500.0,0.00029863,4]
[328790151,1717788648967,-500.0,0.00029863,4]
[328790152,1717788648976,-500.0,0.00029863,4]
[328790153,1717788648986,-500.0,0.00029863,4]
[328790154,1717788648996,-534.08148166,0.00029863,4]
[328790155,1717788649005,-500.0,0.00029863,4]
[328790156,1717788649014,-500.0,0.00029863,4]
[328790157,1717788649024,-500.0,0.00029863,4]
[328790158,1717788649033,-500.0,0.00029863,4]
[328790159,1717788649042,-500.0,0.00029863,4]
[328790160,1717788649054,-500.0,0.00029863,4]
[328790161,1717788649063,-500.0,0.00029863,4]
[328790162,1717788649072,-500.0,0.00029863,4]
[328790163,1717788649082,-500.0,0.00029863,4]
[328790164,1717788649091,-500.0,0.00029863,4]
[328790165,1717788649102,-708.33,0.00029863,4]
[328790166,1717788649112,-500.0,0.00029863,4]
[328790167,1717788649122,-500.0,0.00029863,4]
[328790168,1717788649132,-708.33,0.00029863,4]
[328790169,1717788649142,-500.0,0.00029863,4]
[328790170,1717788649151,-500.0,0.00029863,4]
[328790171,1717788649161,-708.33,0.00029863,4]
[328790172,1717788649170,-534.96,0.00029863,4]
[328790173,1717788649180,-708.33,0.00029863,4]
[328790174,1717788649189,-708.33,0.00029863,4]
[328790175,1717788649200,-708.33,0.00029863,4]
[328790176,1717788649209,-708.33,0.00029863,4]
[328790177,1717788649218,-708.33,0.00029863,4]
[328790178,1717788649228,-708.33,0.00029863,4]
[328790179,1717788649238,-708.33,0.00029863,4]
[328790180,1717788649247,-708.33,0.00029863,4]
[328790181,1717788649256,-708.33,0.00029863,4]
[328790182,1717788649265,-708.33,0.00029863,4]
[328790183,1717788649274,-708.33,0.00029863,4]
[328790184,1717788649283,-708.33,0.00029863,4]
[328790185,1717788649292,-708.33,0.00029863,4]
[328790186,1717788649303,-708.33,0.00029863,4]
[328790187,1717788649312,-500.0,0.00029863,4]
[328790188,1717788649321,-708.33,0.00029863,4]
[328790189,1717788649330,-500.0,0.00029863,4]
[328790190,1717788649339,-708.33,0.00029863,4]
[328790191,1717788649349,-500.0,0.00029863,4]
[328790192,1717788649358,-708.33,0.00029863,4]
[328790193,1717788649367,-708.33,0.00029863,4]
[328790194,1717788649376,-592.44,0.00029863,4]
[328790195,1717788649385,-708.33,0.00029863,4]
[328790196,1717788649394,-708.33,0.00029863,4]
[328790197,1717788649403,-708.41,0.00029863,4]
[328790198,1717788649413,-500.0,0.00029863,4]
[328790199,1717788649422,-500.0,0.00029863,4]
[328790200,1717788649431,-500.0,0.00029863,4]
[328790201,1717788649440,-500.0,0.00029863,4]
[328790202,1717788649450,-500.0,0.00029863,4]
[328790203,1717788649460,-636.49,0.00029863,4]
[328790204,1717788649469,-500.0,0.00029863,4]
[328790205,1717788649478,-500.0,0.00029863,4]
[328790206,1717788649487,-500.0,0.00029863,4]
[328790207,1717788649497,-500.0,0.00029863,4]
[328790208,1717788649506,-500.0,0.00029863,4]
[328790209,1717788649515,-500.0,0.00029863,4]
[328790210,1717788649524,-401.77045646,0.00029863,4]
[328790211,1717788649534,-500.0,0.00029863,4]
[328790212,1717788649543,-500.0,0.00029863,4]
[328790213,1717788649554,-500.0,0.00029863,4]
[328790214,1717788649564,-500.0,0.00029863,4]
[328790215,1717788649577,-500.0,0.00029863,4]
[328790216,1717788649586,-500.0,0.00029863,4]
[328790217,1717788649596,-500.0,0.00029863,4]
[328790218,1717788649606,-599.57635733,0.00029863,4]
[328790219,1717788649615,-500.0,0.00029863,4]